bitfinex/quotes_SOLUSD_20250206
["timestamp","ask_amount","ask_price","bid_price","bid_amount"]
[1738870419621,38.81750476,189.58,189.51,0.03]
[1738870419844,38.81750476,189.59,189.52,38.81750476]
[1738870419998,38.81750476,189.59,189.53,38.81750476]
[1738870420198,4.39001247,189.6,189.56,38.81750476]
[1738870420608,1.75291247,189.6,189.58,38.81750476]
[1738870420811,0.11501247,189.6,189.59,38.81750476]
[1738870421518,0.11501247,189.6,189.59,44.09200476]
[1738870422610,0.11501247,189.6,189.58,38.81750476]
[1738870422805,2.75211247,189.6,189.55,38.81750476]
[1738870423103,0.11501247,189.6,189.56,38.81750476]
[1738870423415,0.11501247,189.6,189.58,38.81750476]
[1738870423611,0.11501247,189.6,189.59,38.81750476]
[1738870423796,0.11501247,189.6,189.59,77.63500952]
[1738870424000,0.11501247,189.6,189.59,38.81750476]
[1738870425516,0.11501247,189.6,189.59,44.09200476]
[1738870426227,0.11501247,189.6,189.59,38.81750476]
[1738870426834,0.11501247,189.6,189.59,44.88299671]
[1738870427041,0.11501247,189.6,189.59,78.42600147]
[1738870427203,0.11501247,189.6,189.55,13.41184853]
[1738870427204,0.11501247,189.6,189.58,38.81750476]
[1738870427743,0.11501247,189.6,189.56,38.81750476]
[1738870428042,47.63581723,189.6,189.53,38.81750476]
[1738870428203,8.81831247,189.6,189.55,38.81750476]
[1738870428398,6.18121247,189.6,189.55,38.81750476]
[1738870428614,6.18121247,189.6,189.57,38.81750476]
[1738870428822,0.11501247,189.6,189.58,38.81750476]
[1738870429037,0.11501247,189.6,189.59,38.81750476]
[1738870430050,0.11501247,189.6,189.59,44.09200476]
[1738870430729,0.11501247,189.6,189.59,82.90950952]
[1738870430916,1.247e-05,189.6,189.59,83.70026476]
[1738870431114,0.11125045,189.63,189.59,83.70026476]
[1738870431115,0.11125045,189.63,189.59,98.23760329]
[1738870431347,2.287e-05,189.64,189.63,13.41184853]
[1738870431530,1.6525,189.75,189.63,53.0198975]
[1738870431841,6.3733,189.76,189.64,44.09060476]
[1738870432010,5.61e-06,189.67,189.66,13.41184853]
[1738870432212,1.836e-05,189.69,189.67,14.41184853]
[1738870432533,0.0001,189.73,189.71,13.41184853]
[1738870432730,0.0001,189.73,189.7,1.0]
[1738870432731,0.0001,189.73,189.72,53.01953368]
[1738870433234,0.0001,189.73,189.72,39.60772274]
[1738870433630,0.0001,189.73,189.72,58.29047127]
[1738870434129,0.063,189.78,189.73,15.53733853]
[1738870434332,0.063,189.78,189.77,77.63500952]
[1738870434522,0.063,189.78,189.77,78.42501723]
[1738870434720,0.16174995,189.78,189.77,78.42501723]
[1738870435030,0.16174995,189.78,189.77,91.83686576]
[1738870435031,4.995e-05,189.78,189.77,91.83686576]
[1738870435229,4.995e-05,189.78,189.77,78.42501723]
[1738870435540,4.995e-05,189.78,189.77,91.83686576]
[1738870435718,0.16496876,189.79,189.78,13.41184853]
[1738870435917,0.17153518,189.8,189.78,96.31605805]
[1738870436128,6.225e-05,189.81,189.8,13.41184853]
[1738870436336,6.225e-05,189.81,189.8,91.04685805]
[1738870436522,0.063,189.89,189.81,0.12549]
[1738870436713,0.063,189.89,189.82,39.60723762]
[1738870436916,0.063,189.89,189.83,38.81750476]
[1738870437737,0.063,189.89,189.83,52.22935329]
[1738870438036,0.063,189.89,189.83,57.49715329]
[1738870438245,0.063,189.89,189.83,59.41235849]
[1738870438539,0.063,189.89,189.85,38.81750476]
[1738870438937,0.063,189.89,189.84,38.81750476]
[1738870439529,2.6332,189.88,189.84,38.81750476]
[1738870439730,0.063,189.89,189.84,38.81750476]
[1738870440131,2.6332,189.88,189.83,38.81750476]
[1738870440332,2.74422294,189.86,189.81,38.81750476]
[1738870440535,41.5617277,189.86,189.79,38.81750476]
[1738870440824,0.11072294,189.86,189.8,0.79019502]
[1738870441130,0.11072294,189.86,189.77,0.78987688]
[1738870441641,0.11072294,189.86,189.78,14.41184853]
[1738870441844,0.11072294,189.86,189.8,13.41184853]
[1738870442137,0.063,189.89,189.86,13.41184853]
[1738870442345,0.063,189.89,189.88,77.63500952]
[1738870442947,0.063,189.97,189.9,1.0]
[1738870443137,0.063,189.97,189.96,38.81750476]
[1738870445628,0.063,189.97,189.94,38.81750476]
[1738870445828,0.063,189.97,189.93,38.81750476]
[1738870446051,0.063,189.97,189.94,38.81750476]
[1738870446254,0.063,189.97,189.92,38.81750476]
[1738870446456,0.063,189.97,189.86,6.05679177]
[1738870446754,20.0,189.96,189.84,5.2675]
[1738870447056,20.0,189.94,189.84,5.2675]
[1738870447431,20.0,189.94,189.9,38.81750476]
[1738870447646,22.6324,189.94,189.9,38.81750476]
[1738870447851,20.0,189.94,189.92,38.81750476]
[1738870448151,0.063,189.97,189.93,38.81750476]
[1738870448326,20.063,189.97,189.95,38.81750476]
[1738870448531,0.063,189.97,189.96,38.81750476]
[1738870449843,0.063,189.97,189.96,44.08170476]
[1738870450558,0.063,189.97,189.96,38.81750476]
[1738870450931,0.063,189.97,189.94,38.81750476]
[1738870451253,0.063,189.97,189.91,38.81750476]
[1738870451455,0.063,189.97,189.87,5.2666]
[1738870451456,0.063,189.97,189.92,38.81750476]
[1738870451758,20.063,189.97,189.93,38.81750476]
[1738870451952,22.695,189.97,189.91,38.81750476]
[1738870452159,2.695,189.97,189.92,38.81750476]
[1738870452731,0.063,189.97,189.94,38.81750476]
[1738870452938,22.6949,189.97,189.92,38.81750476]
[1738870453136,43.01340476,189.97,189.9,38.81750476]
[1738870453341,38.81750476,189.95,189.88,38.81750476]
[1738870453536,38.81750476,189.92,189.85,38.81750476]
[1738870453854,38.81750476,189.89,189.84,0.03]
[1738870454057,38.81750476,189.9,189.84,0.03]
[1738870454361,6.512,189.91,189.87,38.81750476]
[1738870454760,0.10466062,189.87,189.84,0.03]
[1738870455375,0.10466062,189.87,189.86,38.81750476]
[1738870458749,0.10466062,189.87,189.84,0.03]
[1738870458951,58.81750476,189.86,189.84,0.03]
[1738870459175,38.81750476,189.86,189.84,0.03]
[1738870459462,30.0,189.85,189.7,44.08890476]
[1738870459779,0.10466062,189.87,189.75,0.12549]
[1738870460063,0.10466062,189.87,189.77,18.68134853]
[1738870460237,2.73806062,189.87,189.77,5.2695]
[1738870460443,2.73806062,189.87,189.75,0.79014284]
[1738870460637,2.73806062,189.87,189.73,38.81750476]
[1738870460638,6.3309,189.79,189.73,38.81750476]
[1738870460856,38.81750476,189.77,189.65,0.03]
[1738870461060,20.0,189.76,189.65,5.3028]
[1738870461561,20.0,189.76,189.66,0.79057417]
[1738870461865,6.3309,189.79,189.68,5.272]
[1738870462170,6.3309,189.79,189.77,38.81750476]
[1738870462386,2.6339,189.83,189.77,38.81750476]
[1738870463069,20.0,189.81,189.78,38.81750476]
[1738870463264,20.0,189.81,189.79,38.81750476]
[1738870464158,20.0,189.81,189.8,38.81750476]
[1738870464351,10.4293,189.84,189.8,38.81750476]
[1738870464557,10.4293,189.84,189.78,38.81750476]
[1738870465073,20.0,189.81,189.78,38.81750476]
[1738870465253,20.0,189.81,189.77,38.81750476]
[1738870465574,20.0,189.81,189.78,38.81750476]
[1738870465773,20.0,189.81,189.74,5.2703]
[1738870465774,20.0,189.81,189.79,38.81750476]
[1738870465973,7.7955,189.84,189.8,38.81750476]
[1738870466175,6.1545,189.84,189.83,38.81750476]
[1738870466351,20.0,189.86,189.83,38.81750476]
[1738870467166,20.0,189.86,189.83,21.60249374]
[1738870467370,0.10466062,189.87,189.84,21.60249374]
[1738870468066,0.10466062,189.87,189.86,21.60249374]
[1738870468750,0.10466062,189.87,189.86,35.09527261]
[1738870469965,2.73806062,189.87,189.82,35.09527261]
[1738870470176,0.10466062,189.87,189.83,35.09527261]
[1738870470483,20.10466062,189.87,189.83,35.09527261]
[1738870470646,22.73796062,189.87,189.83,35.09527261]
[1738870471048,0.10466062,189.87,189.84,35.09527261]
[1738870471250,2.73806062,189.87,189.83,35.09527261]
[1738870471450,2.73806062,189.87,189.82,35.09527261]
[1738870471667,2.73806062,189.87,189.83,0.03]
[1738870471956,0.10466062,189.87,189.86,35.09527261]
[1738870473794,0.10466062,189.87,189.86,40.36227261]
[1738870474286,0.10466062,189.87,189.86,41.15206735]
[1738870474655,0.20860164,189.87,189.86,89.65918849]
[1738870474977,0.20113937,189.88,189.87,13.41184853]
[1738870475189,3.937e-05,189.88,189.87,83.60239375]
[1738870475782,3.937e-05,189.88,189.87,88.86909375]
[1738870475988,0.2174683,189.9,189.88,14.91380853]
[1738870476157,3.292e-05,189.91,189.9,70.19054522]
[1738870477573,3.292e-05,189.91,189.9,75.45644522]
[1738870478383,0.09884061,189.93,189.91,13.53733853]
[1738870478560,0.09884061,189.93,189.92,35.88469135]
[1738870479070,4.47e-06,189.94,189.92,49.29653988]
[1738870479391,6.007e-05,189.96,189.95,18.80183853]
[1738870479564,6.007e-05,189.96,189.95,89.7816196]
[1738870479907,0.063,190.03,189.97,0.12549]
[1738870480088,0.063,190.03,190.02,35.09527261]
[1738870481381,0.063,190.03,190.01,35.09527261]
[1738870481584,0.063,190.03,189.92,5.2653]
[1738870481789,0.063,190.03,190.02,35.09527261]
[1738870482696,0.063,190.03,190.02,35.88435032]
[1738870483100,0.063,190.03,190.02,41.14695032]
[1738870483696,0.063,190.15,190.03,13.53733853]
[1738870484001,0.063,190.15,190.1,35.09527261]
[1738870484181,20.063,190.15,190.1,35.09527261]
[1738870484382,20.063,190.15,190.09,35.09527261]
[1738870484587,55.15827261,190.15,190.08,35.09527261]
[1738870484798,35.09527261,190.14,190.08,35.09527261]
[1738870485005,2.6299,190.13,190.08,35.09527261]
[1738870485209,20.0,190.13,190.08,35.09527261]
[1738870485506,20.0,190.13,190.09,35.09527261]
[1738870485680,0.063,190.15,190.1,35.09527261]
[1738870486002,0.063,190.15,190.08,35.09527261]
[1738870486003,35.15827261,190.15,190.08,35.09527261]
[1738870486183,35.09527261,190.14,190.07,35.09527261]
[1738870486382,30.0,190.14,190.01,5.2628]
[1738870486905,65.09527261,190.14,190.07,35.09527261]
[1738870487102,35.09527261,190.13,190.06,35.09527261]
[1738870487411,35.09527261,190.14,190.07,35.09527261]
[1738870487601,20.0,190.12,190.09,35.09527261]
[1738870488299,0.063,190.15,190.1,35.09527261]
[1738870489713,0.063,190.15,190.1,40.35557261]
[1738870490301,0.063,190.15,190.1,35.09527261]
[1738870490785,43.93580075,190.14,190.08,23.93580075]
[1738870490981,43.93580075,190.14,190.07,23.93580075]
[1738870491411,2.6297,190.13,190.07,23.93580075]
[1738870492226,2.6297,190.13,190.08,23.93580075]
[1738870492715,2.6297,190.13,190.07,23.93580075]
[1738870493090,2.6297,190.13,190.08,23.93580075]
[1738870493489,20.0,190.12,190.09,23.93580075]
[1738870493693,20.0,190.12,190.1,23.93580075]
[1738870493911,2.6925,190.15,190.1,23.93580075]
[1738870494087,22.6925,190.15,190.1,23.93580075]
[1738870494299,26.56540075,190.14,190.07,23.93580075]
[1738870494487,23.93580075,190.12,190.06,23.93580075]
[1738870494690,0.09737653,190.08,190.06,23.93580075]
[1738870495309,0.09737653,190.08,190.03,23.93580075]
[1738870495488,0.09737653,190.08,190.04,23.93580075]
[1738870496011,0.09737653,190.08,190.03,23.96580075]
[1738870496192,2.72787653,190.08,190.03,23.96580075]
[1738870496680,9.17647653,190.08,190.03,23.96580075]
[1738870496886,6.54597653,190.08,190.03,23.96580075]
[1738870497086,6.54597653,190.08,190.05,23.93580075]
[1738870497304,6.54597653,190.08,190.06,23.93580075]
[1738870497896,0.09737653,190.08,190.07,23.93580075]
[1738870499702,0.09737653,190.08,190.07,29.19700075]
[1738870501008,0.09737653,190.08,190.07,29.98596853]
[1738870501209,0.09494102,190.09,190.07,53.92176928]
[1738870501417,0.09494102,190.09,190.08,23.93580075]
[1738870501595,0.09494102,190.09,190.05,23.93580075]
[1738870502111,0.09494102,190.09,190.08,23.93580075]
[1738870502611,6.5932,190.19,190.08,23.93580075]
[1738870502817,0.063,190.23,190.13,23.93580075]
[1738870503115,0.063,190.23,190.13,29.19530075]
[1738870503297,2.6289,190.2,190.13,23.93580075]
[1738870503613,2.6286,190.21,190.13,29.19530075]
[1738870503808,23.93580075,190.22,190.13,23.93580075]
[1738870503809,2.6289,190.19,190.13,23.93580075]
[1738870504727,30.0,190.19,190.13,23.93580075]
[1738870504893,24.1089432,190.16,190.09,23.93580075]
[1738870505104,0.17314245,190.16,190.12,23.93580075]
[1738870505294,0.17314245,190.16,190.13,23.93580075]
[1738870505800,0.17314245,190.16,190.12,23.93580075]
[1738870505998,0.17314245,190.16,190.11,23.93580075]
[1738870506196,2.80244245,190.16,190.11,23.93580075]
[1738870506725,26.67270728,190.14,190.07,23.93580075]
[1738870506932,6.373,190.13,190.09,23.93580075]
[1738870507509,0.10730653,190.14,190.08,6.04975006]
[1738870507712,0.10730653,190.14,190.09,13.41184853]
[1738870507885,0.17030653,190.14,190.13,23.93580075]
[1738870508708,0.17030653,190.14,190.08,5.2607]
[1738870508709,0.17030653,190.14,190.11,23.93580075]
[1738870508895,20.17030653,190.14,190.09,23.93580075]
[1738870509084,20.17030653,190.14,190.07,0.03]
[1738870509085,0.25098,190.13,190.07,23.96580075]
[1738870509289,20.0,190.12,190.08,23.93580075]
[1738870509710,0.17030653,190.14,190.11,23.93580075]
[1738870509895,0.17030653,190.14,190.07,0.03]
[1738870510213,20.0,190.12,190.07,0.03]
[1738870510520,20.0,190.08,190.07,0.03]
[1738870511015,22.6304,190.08,190.07,0.03]
[1738870511393,20.0,190.08,190.07,0.03]
[1738870512199,20.25098,190.09,190.07,0.03]
[1738870512399,20.0,190.09,190.07,0.03]
[1738870512798,20.0,190.08,190.07,0.03]
[1738870513203,22.6304,190.08,190.07,0.03]
[1738870513414,20.0,190.09,190.07,0.03]
[1738870513714,30.25098,190.12,190.07,0.03]
[1738870513715,2.6299,190.12,190.07,0.03]
[1738870513909,0.25098,190.11,190.07,0.03]
[1738870514111,20.0,190.08,190.07,0.03]
[1738870514316,26.82698,190.08,190.07,0.03]
[1738870514493,50.76278075,190.08,190.07,0.03]
[1738870514693,50.85810191,190.08,190.07,0.03]
[1738870514933,95.39544044,190.08,190.07,0.03]
[1738870515110,95.39544044,190.08,190.03,0.03]
[1738870515111,56.94327075,190.04,190.03,0.03]
[1738870515312,72.96971928,190.04,190.03,0.03]
[1738870515710,71.96971928,190.04,190.03,0.03]
[1738870515916,58.55787075,190.04,190.03,0.03]
[1738870516112,72.96971928,190.04,190.03,0.03]
[1738870516301,71.96971928,190.04,190.03,0.03]
[1738870516507,58.55787075,190.04,190.03,0.03]
[1738870517621,20.0,190.04,190.03,0.03]
[1738870517925,6.67132116,190.08,190.03,23.96580075]
[1738870518100,0.09532116,190.08,190.03,0.03]
[1738870518617,20.09532116,190.08,190.03,0.03]
[1738870518818,0.09532116,190.08,190.03,0.03]
[1738870519401,0.04312116,190.09,190.07,23.93580075]
[1738870519627,0.04312116,190.09,190.03,0.03]
[1738870519628,0.04312116,190.09,190.08,23.93580075]
[1738870520404,0.04312116,190.09,190.04,23.93580075]
[1738870520921,0.04312116,190.09,190.05,23.93580075]
[1738870521426,0.04312116,190.09,190.06,23.93580075]
[1738870521917,0.04312116,190.09,190.08,23.93580075]
[1738870522124,0.04312116,190.09,190.03,0.03]
[1738870522298,20.04312116,190.09,190.05,23.93580075]
[1738870522698,20.04312116,190.09,190.07,23.93580075]
[1738870522922,0.04312116,190.09,190.08,23.93580075]
[1738870523604,0.04312116,190.09,190.08,29.19670075]
[1738870523825,0.04312116,190.09,190.06,23.93580075]
[1738870524208,0.04312116,190.09,190.03,23.96580075]
[1738870524209,20.0,190.07,190.03,23.96580075]
[1738870524407,20.0,190.07,190.03,0.03]
[1738870524925,24.18678075,190.06,190.03,0.03]
[1738870525223,24.31227075,190.04,190.03,0.03]
[1738870525431,24.31227075,190.04,189.95,23.93580075]
[1738870525432,0.25098,189.99,189.93,23.93580075]
[1738870525624,24.18678075,189.99,189.92,23.93580075]
[1738870525931,20.25098,189.99,189.94,23.93580075]
[1738870526303,44.18678075,189.99,189.92,23.93580075]
[1738870526509,44.18678075,189.99,189.91,23.93580075]
[1738870526510,2.88288,189.97,189.91,23.93580075]
[1738870527421,20.0,189.95,189.9,23.93580075]
[1738870527627,20.0,189.93,189.89,23.93580075]
[1738870528247,20.0,189.93,189.88,23.93580075]
[1738870528544,20.0,189.93,189.89,23.93580075]
[1738870528706,20.0,189.93,189.9,23.93580075]
[1738870529101,20.0,189.93,189.89,23.93580075]
[1738870530234,20.0,189.9,189.85,23.93580075]
[1738870531028,46.56860075,189.91,189.84,23.93580075]
[1738870531332,0.25098,189.9,189.84,23.93580075]
[1738870531724,20.0,189.91,189.85,23.93580075]
[1738870531919,20.0,189.91,189.86,23.93580075]
[1738870532432,20.0,189.9,189.89,0.03]
[1738870533026,43.41184853,189.95,189.89,23.96580075]
[1738870533027,20.0,189.92,189.89,23.96580075]
[1738870533236,7.7868,189.98,189.91,23.93580075]
[1738870533528,7.7868,189.98,189.93,23.93580075]
[1738870533827,0.25098,189.95,189.9,23.93580075]
[1738870534031,0.25098,189.95,189.89,0.03]
[1738870534226,20.0,189.9,189.89,0.03]
[1738870534428,20.25098,189.9,189.89,0.03]
[1738870534622,77.05514659,189.9,189.89,0.03]
[1738870535334,53.11934584,189.9,189.89,0.03]
[1738870535634,20.10997584,189.9,189.89,0.03]
[1738870535836,27.05514659,189.9,189.89,0.03]
[1738870536807,51.63488646,189.9,189.89,0.03]
[1738870537132,3.11934584,189.9,189.89,0.03]
[1738870537451,0.10997584,189.9,189.89,0.03]
[1738870537633,20.10997584,189.9,189.89,0.03]
[1738870537932,22.74287584,189.9,189.89,0.03]
[1738870539542,53.11934584,189.9,189.89,0.03]
[1738870539718,101.63488646,189.9,189.89,0.03]
[1738870540036,66.53119437,189.9,189.89,0.03]
[1738870540415,0.12549,189.89,189.84,34.63369209]
[1738870541034,2.6332,189.88,189.84,34.63369209]
[1738870541330,0.10997584,189.9,189.87,35.10369209]
[1738870541534,0.10997584,189.9,189.89,35.10369209]
[1738870542122,0.10997584,189.9,189.84,5.2675]
[1738870542123,0.10997584,189.9,189.87,35.10369209]
[1738870542517,0.10997584,189.9,189.84,35.10369209]
[1738870543313,0.10997584,189.9,189.88,35.10369209]
[1738870543721,0.10997584,189.9,189.89,35.10369209]
[1738870544419,0.10997584,189.9,189.89,70.20738418]
[1738870544818,0.10997584,189.9,189.89,70.99705941]
[1738870545025,7.584e-05,189.9,189.89,70.99705941]
[1738870545541,2.466e-05,189.91,189.89,89.80059794]
[1738870545745,7.044e-05,189.92,189.9,70.20738418]
[1738870546037,5.446e-05,189.94,189.92,13.41184853]
[1738870546222,5.446e-05,189.94,189.93,35.89308759]
[1738870547322,5.446e-05,189.94,189.93,40.36869209]
[1738870549055,5.446e-05,189.94,189.93,41.15826229]
[1738870549642,7.121e-05,189.96,189.94,14.91380853]
[1738870549827,0.063,190.03,189.96,13.41184853]
[1738870550151,8.02e-05,189.99,189.98,83.61923271]
[1738870550358,0.063,190.03,190.0,5.2631]
[1738870550525,0.063,190.08,190.07,35.10369209]
[1738870551026,0.063,190.08,190.07,70.20738418]
[1738870552116,0.063,190.13,190.07,70.20738418]
[1738870552117,0.063,190.13,190.07,84.40810084]
[1738870552321,0.063,190.13,190.12,35.10369209]
[1738870552544,0.063,190.13,190.12,40.36349209]
[1738870553745,0.0001,190.13,190.12,53.77534062]
[1738870554037,0.0001,190.14,190.13,13.41184853]
[1738870554240,0.0001,190.14,190.13,35.10369209]
[1738870554620,0.09547609,190.14,190.13,53.77504062]
[1738870554827,0.09547609,190.14,190.13,54.56375944]
[1738870555436,7.609e-05,190.14,190.13,89.79294153]
[1738870555722,2.317e-05,190.15,190.14,13.53733853]
[1738870555954,2.317e-05,190.15,190.14,83.74472271]
[1738870556871,2.317e-05,190.15,190.14,53.90023062]
[1738870557039,2.317e-05,190.15,190.14,54.68875597]
[1738870557242,2.317e-05,190.15,190.14,89.79244806]
[1738870557464,2.317e-05,190.15,190.14,54.68875597]
[1738870558585,6.753e-05,190.16,190.15,13.53733853]
[1738870558751,1.674e-05,190.17,190.16,0.12549]
[1738870558953,1.674e-05,190.17,190.16,24.68874903]
[1738870560073,0.10857438,190.18,190.16,24.68882379]
[1738870560074,1e-08,190.18,190.16,24.68882379]
[1738870560276,1e-08,190.18,190.17,23.90029403]
[1738870560459,1e-08,190.18,190.17,29.15869403]
[1738870560783,1e-08,190.18,190.17,23.90029403]
[1738870560958,1e-08,190.18,190.17,29.15869403]
[1738870561275,0.02000001,190.19,190.17,29.15869403]
[1738870561459,0.02000001,190.19,190.18,23.90029403]
[1738870562662,0.02000001,190.19,190.17,29.15869403]
[1738870562844,0.02000001,190.19,190.18,23.90029403]
[1738870563676,0.02000001,190.19,190.17,23.90029403]
[1738870563844,0.02000001,190.19,190.16,23.90029403]
[1738870563845,0.14549001,190.19,190.16,23.90029403]
[1738870564055,24.04578404,190.19,190.13,23.90029403]
[1738870564363,0.12549,190.17,190.11,23.90029403]
[1738870564866,0.12549,190.16,190.1,23.90029403]
[1738870565064,24.02578403,190.16,190.1,23.90029403]
[1738870565289,44.02578403,190.16,190.09,23.90029403]
[1738870565453,20.12549,190.16,190.1,23.90029403]
[1738870566050,8.106,190.17,190.11,23.90029403]
[1738870566266,6.574,190.17,190.13,23.90029403]
[1738870566488,0.12549,190.16,190.13,23.90029403]
[1738870566684,0.12549,190.16,190.11,23.90029403]
[1738870566891,26.78057403,190.16,190.09,23.90029403]
[1738870567349,26.574,190.17,190.12,23.90029403]
[1738870567543,26.574,190.17,190.14,23.90029403]
[1738870568187,0.02000001,190.19,190.16,23.90029403]
[1738870568482,0.02000001,190.19,190.15,23.90029403]
[1738870568691,0.02000001,190.19,190.1,23.90029403]
[1738870568692,0.02000001,190.19,190.17,23.90029403]
[1738870568853,0.02000001,190.19,190.18,23.90029403]
[1738870569663,0.08300001,190.19,190.18,23.90029403]
[1738870570286,0.08300001,190.19,190.18,61.21243659]
[1738870570449,0.08300001,190.19,190.18,38.10047146]
[1738870570772,0.08300001,190.19,190.18,43.35857146]
[1738870571174,0.08300001,190.19,190.18,29.94672293]
[1738870571562,0.08300001,190.19,190.18,29.15839403]
[1738870572267,0.08300001,190.19,190.16,23.90029403]
[1738870572475,0.08300001,190.19,190.14,5.2592]
[1738870572777,23.90029403,190.18,190.13,0.03]
[1738870573182,24.23427404,190.19,190.13,0.03]
[1738870573387,0.33398001,190.19,190.13,23.93029403]
[1738870573583,0.33398001,190.19,190.14,23.90029403]
[1738870573774,0.08300001,190.19,190.16,23.90029403]
[1738870573970,23.90029403,190.18,190.13,0.03]
[1738870574172,0.08300001,190.19,190.13,0.03]
[1738870574173,24.02578403,190.16,190.13,0.03]
[1738870574592,0.08300001,190.19,190.13,0.03]
[1738870574895,0.11453722,190.16,190.15,23.90029403]
[1738870576172,0.11453722,190.16,190.13,0.03]
[1738870576899,0.11453722,190.16,190.15,23.90029403]
[1738870577075,0.11453722,190.16,190.13,5.2895]
[1738870577275,0.11453722,190.16,190.13,29.18979403]
[1738870577471,0.11453722,190.16,190.15,23.90029403]
[1738870577794,0.11453722,190.16,190.14,23.90029403]
[1738870578001,0.11453722,190.16,190.13,0.03]
[1738870578197,0.11453722,190.16,190.14,23.90029403]
[1738870579104,26.76962125,190.16,190.13,0.03]
[1738870579305,24.15127403,190.14,190.13,0.03]
[1738870579481,0.12549,190.13,190.06,23.90029403]
[1738870579795,0.12549,190.13,190.07,23.90029403]
[1738870580002,36.0764,190.15,190.09,23.90029403]
[1738870580003,6.0764,190.15,190.09,23.90029403]
[1738870580188,6.0764,190.15,190.04,2.08838966]
[1738870580189,0.12549,190.14,190.1,23.90029403]
[1738870580701,6.0764,190.15,190.13,23.90029403]
[1738870580882,6.0764,190.15,190.12,23.90029403]
[1738870581079,6.0764,190.15,190.11,23.90029403]
[1738870581695,0.11453722,190.16,190.14,23.90029403]
[1738870581896,0.11453722,190.16,190.15,23.90029403]
[1738870583309,0.11453722,190.16,190.15,29.15929403]
[1738870583679,0.11453722,190.16,190.12,23.90029403]
[1738870583907,0.11453722,190.16,190.15,23.90029403]
[1738870585187,0.11453722,190.16,190.15,29.15929403]
[1738870587305,3.722e-05,190.16,190.15,29.15929403]
[1738870587605,4.616e-05,190.17,190.16,13.41184853]
[1738870587801,3.543e-05,190.18,190.16,38.31214256]
[1738870588004,4.08e-06,190.19,190.18,13.41184853]
[1738870588304,9.963e-05,190.2,190.18,61.33792659]
[1738870588506,9.963e-05,190.2,190.19,67.2585491]
[1738870588879,9.963e-05,190.2,190.19,29.15809403]
[1738870591487,9.963e-05,190.2,190.19,5.2578]
[1738870591802,9.963e-05,190.2,190.17,29.15859403]
[1738870592008,9.963e-05,190.2,190.17,23.90029403]
[1738870592216,9.963e-05,190.2,190.15,13.1475]
[1738870592217,9.963e-05,190.2,190.15,29.15909403]
[1738870592391,9.963e-05,190.2,190.14,29.15949403]
[1738870592580,9.963e-05,190.2,190.15,23.90029403]
[1738870592786,9.963e-05,190.2,190.16,23.90029403]
[1738870592986,9.963e-05,190.2,190.15,23.90029403]
[1738870593182,0.12549,190.19,190.15,0.03]
[1738870593393,6.3124,190.18,190.15,0.03]
[1738870593986,0.12549,190.17,190.15,0.03]
[1738870594389,24.02578403,190.16,190.15,0.03]
[1738870594688,24.37859125,190.16,190.15,0.03]
[1738870594896,37.79043978,190.16,190.15,0.03]
[1738870595411,0.12549,190.1,190.03,29.16229403]
[1738870595621,0.12549,190.09,190.03,5.262]
[1738870595910,0.12549,190.09,190.04,23.90029403]
[1738870596400,24.15127403,190.12,190.04,23.90029403]
[1738870596597,0.25098,190.12,190.06,23.90029403]
[1738870597407,0.25098,190.12,190.01,19.20909891]
[1738870597597,0.12549,190.15,190.01,19.20909891]
[1738870597598,1.63262722,190.16,190.11,23.90029403]
[1738870597798,1.63262722,190.16,190.12,23.90029403]
[1738870597999,1.63262722,190.16,190.13,23.90029403]
[1738870598200,1.63262722,190.16,190.12,23.90029403]
[1738870598714,1.63262722,190.16,190.11,23.90029403]
[1738870599103,0.25098,190.15,190.1,23.90029403]
[1738870599307,0.25098,190.15,190.05,29.16199403]
[1738870599308,0.12549,190.11,190.05,29.16199403]
[1738870599512,0.12549,190.11,190.06,23.90029403]
[1738870600029,0.12549,190.11,190.05,29.16199403]
[1738870600030,0.25098,190.11,190.05,29.16199403]
[1738870600185,0.12549,190.09,190.03,29.16229403]
[1738870600388,0.12549,190.09,190.01,5.2626]
[1738870600389,0.12549,190.06,190.01,5.2626]
[1738870600585,23.90029403,190.05,189.98,23.90029403]
[1738870600815,23.90029403,190.05,189.98,29.16369403]
[1738870601002,0.12549,190.04,189.98,29.16369403]
[1738870601196,24.15127403,190.04,189.98,5.2634]
[1738870601401,0.12549,190.02,189.97,5.2639]
[1738870601587,23.90029403,190.01,189.95,5.2945]
[1738870601787,23.90029403,189.97,189.95,0.03]